Cogmind - Beta 12 @@@ ROGUE MODE // 2023.06.15 @ 03:28:52 Player: kaj Result: Destroyed by D-53 Grenadier with Mini Grenade Launcher Performance ------------- Evolutions (0) 0 Regions Visited (2) 400 Robots Destroyed (8) 40 Value Destroyed (219) 219 Prototype IDs (0) 0 Alien Tech Used (0) 0 Bonus (0) 0 TOTAL SCORE: 659 Bonus ------- None Cogmind --------- Core Integrity 0/250 Matter 300/300 Energy 99/100 System Corruption 2% Temperature Cool (0) Movement Rolling (185) Ox7 Location -10/Mines Parts ------- > --- POWER (1) -------- (None) > --- PROPULSION (2) --- Wheel > --- UTILITY (2) ------ Huge Storage Unit > --- WEAPON (2) ------- (None) > --- INVENTORY (25) --- Light Ion Engine Light Treads Wheel Wheel Sensor Array Seismic Detector Light Cannon Hammer Peak State ------------ > --- POWER ------------ Ion Engine > --- PROPULSION ------- Aluminum Leg Aluminum Leg > --- UTILITY ---------- Small Storage Unit ECM Suite > --- WEAPON ----------- Medium Laser Light Assault Rifle > --- INVENTORY -------- Light Ion Engine Light Treads Light Treads Wheel Wheel Light Assault Rifle [Rating: 7] Favorites ----------- Power Ion Engine Engine Ion Engine Propulsion Wheel Treads Light Treads Leg Aluminum Leg Wheel Wheel Utility High-capacity Matter Pod Device ECM Suite Storage High-capacity Matter Pod Weapon Light Assault Rifle Energy Gun Medium Laser Ballistic Gun Light Assault Rifle Impact Weapon Hammer Build | -11 -10 -10 ------- Run | Jun Mat Min Slots Evolved . | . . . Power . | . . . Propulsion . | . . . Utility . | . . . Weapon . | . . . Parts Attached 11 | . 10 1 Power . | . . . Engine . | . . . Core . | . . . Reactor . | . . . Propulsion 3 | . 2 1 Treads 1 | . 1 . Leg . | . . . Wheel 2 | . 1 1 Hover . | . . . Flight . | . . . Utility 3 | . 3 . Device 1 | . 1 . Storage 2 | . 2 . Processor . | . . . Hackware . | . . . Protection . | . . . Artifact . | . . . Weapon 5 | . 5 . Energy Gun . | . . . Energy Cannon . | . . . Ballistic Gun 4 | . 4 . Ballistic Cannon . | . . . Launcher . | . . . Special Weapon . | . . . Impact Weapon 1 | . 1 . Slashing Weapon . | . . . Piercing Weapon . | . . . Special Melee Weapon . | . . . Unidentified Prototypes . | . . . Parts Lost 6 | . . 6 Power 1 | . . 1 Propulsion 2 | . . 2 Utility 1 | . . 1 Weapon 2 | . . 2 Highest Loss Streak 6 | . . 6 To Critical Strikes . | . . . Average Slot Usage (%) 98 | . 98 98 Engine 13 | . 14 13 Treads 10 | . 9 13 Leg 7 | . 9 . Wheel 10 | . 9 14 Device 3 | . 4 . Storage 23 | . 22 28 Energy Gun 3 | . 4 . Ballistic Gun 23 | . 22 28 Naked Turns . | . . . Heaviest Build 92 | 13 92 91 Greatest Support 20 | 20 20 10 Greatest Overweight (x) 9 | . 9 9 Average Overweight (x) 2 | . 1 8 Largest Inventory Capacity 25 | . 25 25 Average Capacity 14 | . 10 25 Most Carried 9 | . 9 9 Average Carried 7 | . 7 8 Final Capacity 25 | 8 25 25 Final Carried 9 | 6 9 8 Class Distribution -------------------- 100% | Mutant Dominant Class ---------------- Mutant | -10/Materials Mutant | -10/Mines Resources | -11 -10 -10 ----------- Run | Jun Mat Min Matter Collected 548 | 187 321 40 Remotely . | . . . Salvage Created 277 | . 277 . Parts 20 | . 20 . Haulers Intercepted . | . . . Recyclers Shooed . | . . . Parts Field Recycled . | . . . Retrieved Matter . | . . . Parts Self-Destructed . | . . . Prevented . | . . . Kills | -11 -10 -10 ------- Run | Jun Mat Min Combat Hostiles Destroyed 7 | . 7 . Guns 7 | . 7 . Classes Destroyed 3 | . 3 . Watcher 1 | . 1 . Swarmer 2 | . 2 . Grunt 5 | . 5 . Best Kill Streak 2 | . 2 . Combat Bots Only 2 | . 2 . Max Kills in Single Turn 1 | . 1 . Gunslinging . | . . . Exploded . | . . . Melee . | . . . Uniques/NPCs Destroyed . | . . . Combat | -11 -10 -10 -------- Run | Jun Mat Min Damage Taken 937 | . 365 572 Core 269 | . 69 200 Absorbed by Shields . | . . . Core Remaining (%) 100 | 100 . . Volleys Fired 29 | . 29 . Largest 2 | . 2 . Hottest 70 | . 70 . Shots Fired 58 | . 58 . Gun 58 | . 58 . Cannon . | . . . Launcher . | . . . Special . | . . . Kinetic 48 | . 48 . Thermal 10 | . 10 . Explosive . | . . . Electromagnetic . | . . . Robot Hit Streak 5 | . 5 . Robot Miss Streak 6 | . 6 . Penetration Max . | . . . Secondary Targets 1 | . 1 . Max Gunslinging Chain 1 | . 1 . Shots Hit Robots 32 | . 32 . Core Hits 16 | . 16 . Critical Kills . | . . . Critical Parts Destroyed 1 | . 1 . Critical Strikes 1 | . 1 . Destroy 1 | . 1 . Melee Attacks 6 | . 6 . Impact 6 | . 6 . Slashing . | . . . Piercing . | . . . Sneak Attacks 1 | . 1 . Combat Hostiles . | . . . Follow-up Attacks . | . . . Damage Inflicted 332 | . 332 . Guns 302 | . 302 . Cannons . | . . . Explosions . | . . . Melee 30 | . 30 . Ramming . | . . . Kinetic 241 | . 241 . Thermal 61 | . 61 . Explosive . | . . . Electromagnetic . | . . . Impact 30 | . 30 . Slashing . | . . . Piercing . | . . . Highest Corruption . | . . . Average Corruption . | . . . Corruption Purged . | . . . Corruption Blocked . | . . . Overload Shots . | . . . Overflow Damage . | . . . Projectiles . | . . . Explosions . | . . . Melee . | . . . Knockbacks 1 | . 1 . Impact 1 | . 1 . Kinetic . | . . . Secondary . | . . . Self-Inflicted Damage . | . . . Shots . | . . . Rammed . | . . . Targets Rammed . | . . . Kicked . | . . . Crushed . | . . . Highest Temperature 106 | . 106 . Average Temperature 35 | . 35 . Received Heat Transfer 186 | . 186 . Siege Activations . | . . . Robots Corrupted . | . . . Combat Hostiles . | . . . Parts Fried . | . . . Impact Corruptions . | . . . Robots Melted . | . . . Combat Hostiles . | . . . Parts Melted . | . . . Heat Transferred 185 | . 185 . Parts Sabotaged . | . . . Parts Stolen . | . . . Parts Stripped . | . . . Power Chain Reactions . | . . . Missiles Intercepted . | . . . Alert | -11 -10 -10 ------- Run | Jun Mat Min Peak Influence 134 | . 134 52 Initial 52 | . . 52 Average 66 | . 72 49 Maximum Alert Level . | . . . Low Security (%) 100 | . 100 100 Level 1 . | . . . Level 2 . | . . . Level 3 . | . . . Level 4 . | . . . Level 5 . | . . . High Security . | . . . Max Security . | . . . Squads Dispatched 1 | . 1 . Investigation . | . . . Extermination . | . . . Reinforcement 1 | . 1 . Assault . | . . . Garrison . | . . . Intercept . | . . . Searches Triggered . | . . . Construction Impeded . | . . . Haulers Reinforced . | . . . Active Scanning Responses . | . . . Cargo Convoy Interrupts . | . . . Stealth | -11 -10 -10 --------- Run | Jun Mat Min Distress Signals 1 | . . 1 Communications Jammed . | . . . Distress Signals . | . . . Times Spotted 19 | . 17 2 Peak Tracking Total 4 | . 4 2 Tactical Retreats . | . . . Traps | -11 -10 -10 ------- Run | Jun Mat Min Traps Triggered . | . . . Indirectly . | . . . Trap Hack Attempts . | . . . Triggered . | . . . Disarmed . | . . . Reprogrammed . | . . . Reused . | . . . Traps Extracted . | . . . Installed . | . . . Triggered . | . . . Machines | -11 -10 -10 ---------- Run | Jun Mat Min Machines Disabled . | . . . Max in Single Turn . | . . . Machines Repaired . | . . . Machines Sabotaged . | . . . Overloaded Fab Kills . | . . . Hacking | -11 -10 -10 --------- Run | Jun Mat Min Machines Accessed 3 | . 3 . Terminals 3 | . 3 . Fabricators . | . . . Repair Stations . | . . . Recycling Units . | . . . Scanalyzers . | . . . Garrison Access . | . . . Total Hacks 9 | . 9 . Successful 2 | . 2 . Failed 7 | . 7 . Catastrophic . | . . . Database Lockouts . | . . . Manual 9 | . 9 . Terminals 9 | . 9 . Fabricators . | . . . Repair Stations . | . . . Recycling Units . | . . . Scanalyzers . | . . . Garrison Access . | . . . Terminal Hacks 2 | . 2 . Branch Access Points 1 | . 1 . Zone Layout 1 | . 1 . Fabricator Hacks . | . . . Repair Station Hacks . | . . . Recycling Unit Hacks . | . . . Scanalyzer . | . . . Garrison Access Hacks . | . . . Unauthorized Hacks . | . . . Terminals . | . . . Fabricators . | . . . Repair Stations . | . . . Recycling Units . | . . . Scanalyzers . | . . . Garrison Access . | . . . Data Cores Recovered . | . . . Used . | . . . Hacking Detections 2 | . 2 . Full Trace Events . | . . . Feedback Events . | . . . Feedback Blocked . | . . . Robot Schematics Acquired . | . . . Robots Built . | . . . Authchips . | . . . Time . | . . . Total Robot Build Rating . | . . . Part Schematics Acquired . | . . . Parts Built . | . . . Authchips . | . . . Time . | . . . Total Part Build Rating . | . . . Parts Repaired . | . . . Time . | . . . Parts Recycled . | . . . Recycled Matter . | . . . Retrieved Matter . | . . . Retrieved Components . | . . . Parts Scanalyzed . | . . . Part Schematics Acquired . | . . . Parts Damaged . | . . . Bothacking | -11 -10 -10 ------------ Run | Jun Mat Min Used RIF Installer . | . . . Robots Hacked . | . . . Non-combat . | . . . Combat . | . . . Robot Hacks Applied . | . . . Relay Couplers Released . | . . . Fabnet Peak Effective % . | . . . Robots Rewired . | . . . Allies Hacked . | . . . Hacks Repelled . | . . . Allies | -11 -10 -10 -------- Run | Jun Mat Min Total Allies 3 | . . 3 Largest Group 3 | . . 3 Highest-Rated Group 40 | . . 40 Highest-Rated Ally 16 | . . 16 Total Orders . | . . . Ally Attacks 4 | . . 4 Total Damage 25 | . . 25 Kills . | . . . Allies Corrupted . | . . . Allies Melted . | . . . Intel | -11 -10 -10 ------- Run | Jun Mat Min Robot Analysis Total . | . . . Derelict Logs Recovered . | . . . Drone Launches . | . . . Drone Recoveries . | . . . Exploration | -11 -10 -10 ------------- Run | Jun Mat Min Turns Passed 996 | . 739 257 Spaces Moved 637 | 1 516 120 Core . | . . . Treads . | . . . Legs 151 | 1 150 . Wheels 486 | . 366 120 Hover . | . . . Flight . | . . . Fastest Speed 95 | 120 95 185 Average Speed 130 | 120 110 214 Slowest Speed 215 | 120 215 215 Overloaded Moves . | . . . Propulsion Burnouts . | . . . Robots Hopped . | . . . Cave-ins Triggered 1 | . . 1 Exploration Rate (%) 33 | 1 74 26 Regions Visited 2 Branch Regions 1 Pre-discovered Areas . | . . . Known Exits Taken 1 | . 1 . Unknown Exits Taken 1 | 1 . . Scrap Searched . | . . . Spaces Dug 2 | . 2 . Terrain Destroyed 2 | . 2 . Melee 2 | . 2 . Projectile . | . . . AOE . | . . . Terrain Rammed . | . . . Walls Destroyed . | . . . Machines Disabled . | . . . Actions | -11 -10 -10 --------- Run | Jun Mat Min Total 747 | . 626 121 Wait 53 | . 53 . Move 635 | . 515 120 Hop . | . . . Pick Up 6 | . 6 . Fast Attach 3 | . 3 . Attach 1 | . . 1 Detach . | . . . Swap 7 | . 7 . Drop 7 | . 7 . Fire 29 | . 29 . Melee 6 | . 6 . Ram . | . . . Kick . | . . . Crush . | . . . Escape Stasis . | . . . Rewire . | . . . Trap . | . . . Miscellaneous . | . . . Route ------- -11/Junkyard -10/Materials (discovered 4 exits: [*Mat x2] / *Min x2) -10/Mines (discovered 1 exit: [*Mat]) History --------- Turn | Location | Event 1 | -11/Junkyard | Discovered new exit (range 0) 1 | -11/Junkyard | Entered Materials 32 | -10/Materials | Discovered new exit (range 10) 300 | -10/Materials | Build established: Mutant 341 | -10/Materials | Identified exit to Mines 389 | -10/Materials | Discovered new exit (range 11) 581 | -10/Materials | Discovered new exit (range 15) 740 | -10/Materials | Entered Mines 865 | -10/Mines | Assisted by bots powering up and referring to "LRC-V3" 912 | -10/Mines | Discovered new exit (range 16) 978 | -10/Mines | Assembled infested the area 993 | -10/Mines | Core integrity fell below 50% 996 | -10/Mines | Core integrity fell below 20% 997 | -10/Mines | Crushed by falling debris 997 | -10/Mines | Destroyed by D-53 Grenadier with Mini Grenade Launcher Last Messages --------------- 00982_ C-30 ARC bursts open, deploying its payload. 00982_ D-53 Grenadier unfolds itself. 00983_ Mercenary 1a destroyed. 00983_ K-01 Serf destroyed. 00983_ Extracted 40 matter. 00984_ Trooper 1b destroyed. 00986_ Lgt. Treads destroyed. 00986_ K-01 Serf destroyed. 00987_ Wheel destroyed. 00987_ Ion Engine destroyed. 00988_ Trooper 1a destroyed. 00991_ Lgt. Assault Rifle destroyed. 00993_ The unstable cave ceiling collapses. 00994_ Lgt. Assault Rifle destroyed. 00996_ The unstable cave ceiling collapses. 00996_ T-07 Excavator destroyed. 00997_ The unstable cave ceiling collapses. 00997_ Crushed by falling debris. 00997_ Hcp. Matter Pod destroyed. 00997_ System corrupted by crushing effect (+2). Map ----- +----------------------------------------------------+ | ????????????????????????# ##### ##???????????? | | ????????????????????????# #???# ##????????????? | | ????????????????????????# #???# #?????????????? | | ????????????????????????# ##### #?????????????? | | ????????????????????????# #?????????????? | | ????????????????????????# #######?????????????? | | ????????????????????????# #???????????????????? | | ????????????????????????# #???????????????????? | | ????????????????????????# #???????????????????? | | ????????????????????????# #???????????????????? | | ????????????????????????# #???????????????????? | | ????????????????????????# #???????????????????? | | ???????????????????????## #???????????????????? | | ??????????????????????## ##??????????????????? | | ?????????????????????## #??????????????????? | | ?????????????????????# ##?????????????????? | | ?????????????????????# ##????????????????? | | ?????????????????????## ##???????????????? | | ??????????????????????# #???????????????? | | ??????????????????????# #???????????????? | | ?????????????????????## < ! ##???????????????? | | ????????????????????## |= #????????????????? | | ???????????????????## #????????????????? | | ??????????????????## #????????????????? | | ?????????????????## k %#????????????????? | | ?????????????????# #@ t #????????????????? | | ????????????????## d #????????????????? | | ????????????????# d ###????????????????? | | ????????????????# # #??????????????????? | | ????????????????# ##??????????????????? | | ????????????????# ##???????????????????? | | ?????????????#### #????????????????????? | | ?????????????# t %= ##????????????????????? | | ?????????????# #### * #????????????????????? | | ?????????????#????# #???????????????????? | | ??????????????????## ## #???????????????????? | | ??????????????????? #### ##???????????????????? | | ??????????????????####???##????????????????????? | | ???????????????????????????????????????????????? | | ???????????????????????????????????????????????? | | ???????????????????????????????????????????????? | | ???????????????????????????????????????????????? | | ???????????????????????????????????????????????? | | ???????????????????????????????????????????????? | | ???????????????????????????????????????????????? | | | | | | | | | | | +----------------------------------------------------+ Best States ------------- Heat Dissipation 25 Energy Generation 10 Energy Capacity 250 Matter Stores 500 Matter Capacity 500 Sight Range 16 Terrain Scan Density 10 ECM Strength 1 Evasion (%) 55 Item Schematics ----------------- None Robot Schematics ------------------ None Fabricated ------------ Nothing Alien Tech Used ----------------- None Achievements -------------- None Challenges ------------ None Game ------ Seed SupersonicCoreBoregun Manual? 0 Play Time 00:08:24 Cumulative 142.9 hours Start 2023.06.15 @ 03:21:23 End 2023.06.15 @ 03:28:52 Sessions 1 Manual Loads 0 Difficulty Rogue Special Mode None Game No. 214 Rogue 214 Adventurer 0 Explorer 0 Win Type - Total 0 Types 0/0/0/0/0/0/0/0/0 Lore% 49 Gallery% 57 Achievement% 43 Wizard Run 0 Options --------- ASCII 0 Keyboard 0 Movement Mouse Keybinds 1 Fullscreen 2 Font 18/SmallcapsGlow Map View 76x50 Tactical HUD 1 Map Filters SATURATION(75) Filters LOW_CONTRAST(23,23,23) Steam 1 RUN: 3f3e4bb3-45f2-4fe5-857e-f99e68ac0237